{"text_format":"1","workbook":"xlsx","n_sheets":8,"sheets":["Přehledy","Faktura","QR Platba","Výkaz servisních prací","GDPR souhlas","Odběratelé","Činnosti","Nastavení"],"not_rendered":{"charts":1,"images":7,"macros":1,"external_links":0,"defined_names":1,"comments":4,"pivot_tables":0},"unopened":[],"bounds":{"document_bytes":16777216,"sheet_cells":100000,"rows_first":2000,"rows_last":500,"rows_between":2000,"halvings":0,"cell_chars":16384,"cell_head_chars":4096},"cells_cut":0,"cells_raw":0,"read":"whole","date_system":"1900"}

{"sheet":"Přehledy","index":0,"n_rows":44,"n_cols":12,"rows_kept":44,"cut":false,"hidden":false,"merged":[[0,8,0,9],[2,0,2,1],[2,14,2,15],[0,0,1,6],[43,4,43,6],[43,0,43,3],[6,11,9,11],[10,11,13,11],[3,14,3,15]]}
["Přehled vystavených faktur",null,null,null,null,null,null,null,"Obraty",null,null,"Obory činnosti OSVČ"]
[null,null,null,null,null,null,null,null,"Rok","Celkem",null,"Poradenství v oblasti informačních technologií"]
["Fa. číslo",null,"Datum","Odběratel","Kč","Platba","Pozn.",null,2017,120000,null,"Instalace a konfigurace software"]
[{"$f":"Nastavení!$B$18","v":2018},1,"2018-01-02","Odběratel 1",10000,"2018-01-09",null,null,2018,150000,null,"Poradenská činnost v IT, zpracování posudků, dodávka hardware "]
[{"$f":"Nastavení!$B$18","v":2018},{"$f":"IF(C4=\"\",\"\",B4+1)","v":2},"2018-01-02","Odběratel 2",15000,"2018-01-09",null,null,2019,0]
[{"$f":"Nastavení!$B$18","v":2018},3,"2018-01-02","Odběratel 3",20000,"2018-02-15",null,null,2020,0,null,"Nápověda"]
[{"$f":"Nastavení!$B$18","v":2018},4,"2018-02-03","Odběratel 4",25000,"2018-02-07",null,null,2021,0,null,"Nejdřív vygeneruj fakturu a ulož si ji do PDF, poté ji přepiš do toho přehledu, tedy datum vystavení, odběratel, suma a následně datum splacení. Číslo následující faktury se zvýší o jedno."]
[{"$f":"Nastavení!$B$18","v":2018},5,"2018-03-01","Odběratel 1",15000,"2018-03-16",null,null,2022,0]
[{"$f":"Nastavení!$B$18","v":2018},6,"2018-03-02","Odběratel 1",20000,"2018-03-14",null,null,2023,0]
[{"$f":"Nastavení!$B$18","v":2018},7,"2018-04-03","Odběratel 2",25000,"2018-04-09",null,null,2024,0]
[{"$f":"Nastavení!$B$18","v":2018},8,"2018-04-03","Odběratel 2",10000,"2018-05-03",null,null,2025,0,null,"Na konci roku přepiš celkový součet do tabulky Obraty, ze které se generuje graf obratů."]
[{"$f":"Nastavení!$B$18","v":2018},9,"2018-05-03","Odběratel 4",10000,"2018-05-11",null,null,2026,0]
[{"$f":"Nastavení!$B$18","v":2018},10,null,null,null,null,null,null,2027,0]
[{"$f":"Nastavení!$B$18","v":2018},"",null,null,null,null,null,null,2028,0]
[{"$f":"Nastavení!$B$18","v":2018},""]
[{"$f":"Nastavení!$B$18","v":2018},""]
[{"$f":"Nastavení!$B$18","v":2018},""]
[{"$f":"Nastavení!$B$18","v":2018},""]
[{"$f":"Nastavení!$B$18","v":2018},""]
[{"$f":"Nastavení!$B$18","v":2018},""]
[{"$f":"Nastavení!$B$18","v":2018},""]
[{"$f":"Nastavení!$B$18","v":2018},""]
[{"$f":"Nastavení!$B$18","v":2018},""]
[{"$f":"Nastavení!$B$18","v":2018},""]
[{"$f":"Nastavení!$B$18","v":2018},""]
[{"$f":"Nastavení!$B$18","v":2018},""]
[{"$f":"Nastavení!$B$18","v":2018},""]
[{"$f":"Nastavení!$B$18","v":2018},""]
[{"$f":"Nastavení!$B$18","v":2018},""]
[{"$f":"Nastavení!$B$18","v":2018},""]
[{"$f":"Nastavení!$B$18","v":2018},""]
[{"$f":"Nastavení!$B$18","v":2018},""]
[{"$f":"Nastavení!$B$18","v":2018},""]
[{"$f":"Nastavení!$B$18","v":2018},{"$f":"IF(C33=\"\",\"\",B33+1)","v":""}]
[{"$f":"Nastavení!$B$18","v":2018},""]
[{"$f":"Nastavení!$B$18","v":2018},""]
[{"$f":"Nastavení!$B$18","v":2018},""]
[{"$f":"Nastavení!$B$18","v":2018},""]
[{"$f":"Nastavení!$B$18","v":2018},""]
[{"$f":"Nastavení!$B$18","v":2018},""]
[{"$f":"Nastavení!$B$18","v":2018},""]
[{"$f":"Nastavení!$B$18","v":2018},""]
[{"$f":"Nastavení!$B$18","v":2018},""]
["Celkem za rok:",null,null,null,{"$f":"SUM(E4:E43)","v":150000}]

{"sheet":"Faktura","index":1,"n_rows":45,"n_cols":17,"rows_kept":45,"cut":false,"hidden":false,"merged":[[36,3,36,5],[19,0,19,7],[16,13,16,14],[20,13,20,14],[1,9,2,14],[3,9,5,14],[8,9,10,14],[33,0,33,3],[34,0,34,3],[11,5,11,6],[12,5,12,6],[21,0,21,3],[22,0,22,3],[23,0,23,3],[11,9,11,14],[12,9,12,14],[43,4,43,6],[37,6,37,7],[0,3,0,4],[37,3,37,5],[53,0,53,7],[18,0,18,7],[24,0,24,3],[29,0,29,3],[35,0,35,3],[30,0,30,3],[31,0,31,3],[25,0,25,3],[26,0,26,3],[27,0,27,3],[28,0,28,3],[32,0,32,3]]}
["FAKTURA VYDANÁ",null,null,{"$f":"Nastavení!B18*10000+MAX(Přehledy!B4,Přehledy!B4:B43)","v":20180010},null,null,null,null,null,"Nápověda",null,null,null,null,null,null,"Pomocná data"]
[null,null,null,null,null,null,null,null,null,"Něměň nic v hlavičce faktury, pouze vyber ze seznamu Odběratele. Ty jsou nastaveni na kartě Odběratelé. Ostatní parametry jsou na kartě Nastavení",null,null,null,null,null,null,"QR Platba"]
["DODAVATEL",null,null,null,null,"ODBĚRATEL",null,null,null,null,null,null,null,null,null,null,{"$f":"Q12&\"\"&Q5&\"\"&Nastavení!B9&\"\"&Q6&\"\"&Nastavení!B10&\"\"&Q7&\"\"&G38&\"\"&Q8&\"\"&Q9&\"\"&C14&\"\"&Q10&\"\"&J13&\"\"&Q11","v":"http://api.paylibo.com/paylibo/generator/czech/image?accountNumber=1234567890&bankCode=2010&amount=250&currency=CZK&vs=20180010&message=Platba za fakturu&size=200"}]
[{"$f":"Nastavení!B3","v":"Jméno Příjmení"},null,null,null,null,{"$f":"VLOOKUP(Odběratelé!L1,Odběratelé!A2:G10,2,FALSE)","v":"Odběratel 2"},null,null,null,"V těle faktury vyber na patřičném řádku činnost/položku, pokud není v číselníku, lze jki dopsat ručně do modrého políčka vpravo. Ruční záznam má vždy přednost, defaultně je zadaná mezera v ručním zadání"]
[{"$f":"Nastavení!B4","v":"Žlutá 33"},null,null,null,null,{"$f":"VLOOKUP(Odběratelé!L1,Odběratelé!A2:G10,3,FALSE)","v":"Červená 44"},null,null,null,null,null,null,null,null,null,null,"accountNumber="]
[{"$f":"Nastavení!B5","v":"Plzeň"},null,null,null,null,{"$f":"VLOOKUP(Odběratelé!L1,Odběratelé!A2:G10,4,FALSE)","v":"Plzeň"},null,null,null,null,null,null,null,null,null,null,"&bankCode="]
[{"$f":"Nastavení!B6","v":30100},null,null,null,null,{"$f":"VLOOKUP(Odběratelé!L1,Odběratelé!A2:G10,5,FALSE)","v":"301 00"},null,null,null,"Cena musí být zadána u ručního zadání",null,null,null,null,null,null,"&amount="]
[null,null,null,null,null,null,null,null,null,null,null,null,null,null,null,null,"&currency=CZK"]
["IČO",null,{"$f":"Nastavení!B7","v":88888888},null,null,"IČO",{"$f":"VLOOKUP(Odběratelé!L1,Odběratelé!A2:G10,6,FALSE)","v":55667788},null,null,"Pokud je faktura kompletní, lze vygenerovat QR kód pro rychlo QR platbu, stačí stiknout klávesou kombinaci CTRL+Q. Nezapoměň QR obrázek u další faktury vymazat a znovu vygenerovat.",null,null,null,null,null,null,"&vs="]
[{"$f":"IF(Nastavení!B8>0,\"DIČ\",\" \")","v":" "},null,{"$f":"IF(Nastavení!B8>0,Nastavení!B8,\" \")","v":" "},null,null,"DIČ",{"$f":"VLOOKUP(Odběratelé!L1,Odběratelé!A2:G10,7,FALSE)","v":"CZ55667788"},null,null,null,null,null,null,null,null,null,"&message="]
["BANKOVNÍ ÚČET",null,{"$f":"Nastavení!B9&\"\"&Nastavení!P20&\"\"&Nastavení!B10","v":"1234567890/2010"},null,null,null,null,null,null,null,null,null,null,null,null,null,"&size=200"]
["IBAN",null,{"$f":"Nastavení!B11","v":"CZ8520100000001234567890"},null,null,"DATUM VYSTAVENÍ",null,{"$f":"TODAY()","v":"2020-07-08"},null,"Text pro příjemce do QR kódu",null,null,null,null,null,null,"http://api.paylibo.com/paylibo/generator/czech/image?"]
["SWIFT",null,{"$f":"Nastavení!B12","v":"FIOBCZPPXXX"},null,null,"DATUM SPLATNOSTI",null,{"$f":"H12+MAX(Nastavení!P3:P7)","v":"2020-08-07"},null,"Platba za fakturu"]
["VARIABILNÍ SYMBOL",null,{"$f":"D1","v":20180010}]
["ZPŮSOB ÚHRADY",null,{"$f":"Nastavení!B17","v":"Převodem"}]
[]
[null,null,null,null,null,null,null,null,null,null,null,null,null,"Ruční zadání"]
["Fakturujeme Vám následující položky",null,null,null,null,null,null,null,null,null,null,null,null,"Název položky","Cena"]
[{"$f":"IF(N19=0,VLOOKUP(Činnosti!N44,Činnosti!$A$43:$J$58,2,FALSE),N19)","v":" "},null,null,null,null,null,null,null,null,null,null,null,null," "]
[{"$f":"IF(N20=0,VLOOKUP(Činnosti!N45,Činnosti!$A$43:$J$58,2,FALSE),N20)","v":" "},null,null,null,null,null,null,null,null,null,null,null,null," "]
[null,null,null,null,"Množství","MJ","Cena za MJ","Cena"]
[{"$f":"IF(N22=0,VLOOKUP(Činnosti!N6,Činnosti!$A$6:$J$40,2,FALSE),N22)","v":"Diagnostika problému"},null,null,null,1,"ks",{"$f":"IF(N22=0,IF(Činnosti!P6=0,\"\",Činnosti!P6),O22)","v":250},{"$f":"IF(E22>0,E22*G22,\"\")","v":250}]
[{"$f":"IF(N23=0,VLOOKUP(Činnosti!N7,Činnosti!$A$6:$J$40,2,FALSE),N23)","v":"   "},null,null,null,null,null,{"$f":"IF(N23=0,IF(Činnosti!P7=0,\"\",Činnosti!P7),O23)","v":""},{"$f":"IF(E23>0,E23*G23,\"\")","v":""}]
[{"$f":"IF(N24=0,VLOOKUP(Činnosti!N8,Činnosti!$A$6:$J$40,2,FALSE),N24)","v":"   "},null,null,null,null,null,{"$f":"IF(N24=0,IF(Činnosti!P8=0,\"\",Činnosti!P8),O24)","v":""},""]
[{"$f":"IF(N25=0,VLOOKUP(Činnosti!N9,Činnosti!$A$6:$J$40,2,FALSE),N25)","v":"   "},null,null,null,null,null,{"$f":"IF(N25=0,IF(Činnosti!P9=0,\"\",Činnosti!P9),O25)","v":""},{"$f":"IF(E25>0,E25*G25,\"\")","v":""}]
[{"$f":"IF(N26=0,VLOOKUP(Činnosti!N10,Činnosti!$A$6:$J$40,2,FALSE),N26)","v":"   "},null,null,null,null,null,{"$f":"IF(N26=0,IF(Činnosti!P10=0,\"\",Činnosti!P10),O26)","v":""},""]
[{"$f":"IF(N27=0,VLOOKUP(Činnosti!N11,Činnosti!$A$6:$J$40,2,FALSE),N27)","v":"   "},null,null,null,null,null,{"$f":"IF(N27=0,IF(Činnosti!P11=0,\"\",Činnosti!P11),O27)","v":""},""]
[{"$f":"IF(N28=0,VLOOKUP(Činnosti!N12,Činnosti!$A$6:$J$40,2,FALSE),N28)","v":"   "},null,null,null,null,null,{"$f":"IF(N28=0,IF(Činnosti!P12=0,\"\",Činnosti!P12),O28)","v":""},""]
[{"$f":"IF(N29=0,VLOOKUP(Činnosti!N13,Činnosti!$A$6:$J$40,2,FALSE),N29)","v":"   "},null,null,null,null,null,{"$f":"IF(N29=0,IF(Činnosti!P13=0,\"\",Činnosti!P13),O29)","v":""},""]
[{"$f":"IF(N30=0,VLOOKUP(Činnosti!N14,Činnosti!$A$6:$J$40,2,FALSE),N30)","v":"   "},null,null,null,null,null,{"$f":"IF(N30=0,IF(Činnosti!P14=0,\"\",Činnosti!P14),O30)","v":""},""]
[{"$f":"IF(N31=0,VLOOKUP(Činnosti!N15,Činnosti!$A$6:$J$40,2,FALSE),N31)","v":"   "},null,null,null,null,null,{"$f":"IF(N31=0,IF(Činnosti!P15=0,\"\",Činnosti!P15),O31)","v":""},{"$f":"IF(E31>0,E31*G31,\"\")","v":""}]
[{"$f":"IF(N32=0,VLOOKUP(Činnosti!N16,Činnosti!$A$6:$J$40,2,FALSE),N32)","v":"   "},null,null,null,null,null,{"$f":"IF(N32=0,IF(Činnosti!P16=0,\"\",Činnosti!P16),O32)","v":""},""]
[{"$f":"IF(N33=0,VLOOKUP(Činnosti!N17,Činnosti!$A$6:$J$40,2,FALSE),N33)","v":"   "},null,null,null,null,null,{"$f":"IF(N33=0,IF(Činnosti!P17=0,\"\",Činnosti!P17),O33)","v":""},""]
[{"$f":"IF(N34=0,VLOOKUP(Činnosti!N18,Činnosti!$A$6:$J$40,2,FALSE),N34)","v":"   "},null,null,null,null,null,{"$f":"IF(N34=0,IF(Činnosti!P18=0,\"\",Činnosti!P18),O34)","v":""},""]
[{"$f":"IF(N35=0,VLOOKUP(Činnosti!N19,Činnosti!$A$6:$J$40,2,FALSE),N35)","v":"   "},null,null,null,null,null,{"$f":"IF(N35=0,IF(Činnosti!P19=0,\"\",Činnosti!P19),O35)","v":""},""]
[{"$f":"IF(N36=0,VLOOKUP(Činnosti!N15,Činnosti!$A$6:$J$40,2,FALSE),N36)","v":" "},null,null,null,null,null,null,"",null,null,null,null,null," "]
[{"$f":"Q3","v":"http://api.paylibo.com/paylibo/generator/czech/image?accountNumber=1234567890&bankCode=2010&amount=250&currency=CZK&vs=20180010&message=Platba za fakturu&size=200"},{"$f":"Q3","v":"http://api.paylibo.com/paylibo/generator/czech/image?accountNumber=1234567890&bankCode=2010&amount=250&currency=CZK&vs=20180010&message=Platba za fakturu&size=200"},null,{"$f":"IF(J37=TRUE,\"Sleva v %\",\" \")","v":" "},null,null,null,null,null,false]
[null,null,null,"Celkem k úhradě",null,null,{"$f":"SUM(H22:H24)-SUM(H22:H24)*H37","v":250},null,null,null,null,null,null," "]
[null,null,null,null,null,null,null,null,null,null,null,null,null," "]
[null,null,null,null,null,null,null,null,null,null,null,null,null," "]
[null,null,null,null,null,null,null,null,null,null,null,null,null," "]
[null,null,null,null,null,null,null,null,null,null,null,null,null," "]
[null,null,null,null,null,null,null,null,null,null,null,null,null," "]
[null,null,null,null,null,null,null,null,null,null,null,null,null," "]
[null,null,null,null,null,null,null,null,null,null,null,null,null," "]

{"sheet":"QR Platba","index":2,"n_rows":15,"n_cols":7,"rows_kept":15,"cut":false,"hidden":false,"merged":[[5,2,5,3],[6,2,6,3],[7,2,7,3],[4,2,4,3],[2,5,3,5],[4,5,5,5]]}
[null,"Banka","Ćíslo účtu","Kód banky",null,"Nápověda","Pomocná data"]
[1,"FIO banka",1234567890,2010,null,"Tento list slouží pro rychlé vygenerování QR platby","QR Platba"]
[2,"AirBank",1234567890,3030,null,"Lze vybrat ze dvou nadefinovaných účtů, vyplň částku, VS a zprávu a vygeneruj QR přes CTRL+W",{"$f":"G12&\"\"&G5&\"\"&G13&\"\"&G6&\"\"&G14&\"\"&G7&\"\"&C6&\"\"&G8&\"\"&G9&\"\"&C14&\"\"&G10&\"\"&C8&\"\"&C14&\"\"&G11","v":"http://api.paylibo.com/paylibo/generator/czech/image?accountNumber=1234567890&bankCode=3030&amount=100&currency=CZK&vs=&message=Platba za perfektní nápad&size=200"}]
[]
[null,"Účet",2,null,null,"Obrázek pak lze poslat třeba emailem nebo vytisknout, stačí jej zkopírovat a následně vložit","accountNumber="]
[null,"Částka",100,null,null,null,"&bankCode="]
[null,"VS",123456,null,null,null,"&amount="]
[null,"Zpráva ","Platba za perfektní nápad",null,null,null,"&currency=CZK"]
[null,null,null,null,null,null,"&vs="]
[null,"Vygeneruj QR platbu stiskem CTRL+W",null,null,null,null,"&message="]
[null,null,null,null,null,null,"&size=200"]
[null,null,null,null,null,null,"http://api.paylibo.com/paylibo/generator/czech/image?"]
[null,null,null,null,null,null,{"$f":"VLOOKUP(C5,A2:D3,3,FALSE)","v":1234567890}]
[null,null,null,null,null,null,{"$f":"VLOOKUP(C5,A2:D3,4,FALSE)","v":3030}]
[null,{"$f":"G3","v":"http://api.paylibo.com/paylibo/generator/czech/image?accountNumber=1234567890&bankCode=3030&amount=100&currency=CZK&vs=&message=Platba za perfektní nápad&size=200"}]

{"sheet":"Výkaz servisních prací","index":3,"n_rows":36,"n_cols":3,"rows_kept":36,"cut":false,"hidden":false,"merged":[[1,0,1,2]]}
[]
["Výkaz servisních prací"]
["Datum","Hodin","Popis činností"]
[]
[]
[]
[]
[]
[]
[]
[]
[]
[]
[]
[]
[]
[]
[]
[]
[]
[]
[]
[]
[]
[]
[]
[]
[]
[]
[]
[]
[]
[]
[]
[]
["Celkem:"]

{"sheet":"GDPR souhlas","index":4,"n_rows":8,"n_cols":1,"rows_kept":8,"cut":false,"hidden":false,"merged":[]}
["P R O H L Á Š E N Í"]
["Souhlas se zpracováním osobních údajů"]
["podle zákona č. 101/2000 Sb., zákon o ochraně osobních údajů a o změně některých zákonů, v platném znění (dále jen zákon)"]
[]
[]
["Svým podpisem uděluji souhlas se zpracování osobních údajů pro potřeby vytvoření faktury za dodané zboží nebo služby. Osobní údaje mohou být zpracovávány a uchovávány v následujícím rozsahu: vytvoření a předání faktury mě jakožto odběrateli, uchování faktury na zabezpečeném úložišti dodavatele bez přístupu jiné než pověřené osoby a to především pro potřeby finančního úřadu a dalších kontrolních institucí. Poskytnutí osobních údajů je dobrovolné a mohu svůj souhlas kdykoli odvolat ."]
[]
["V ________________ dne ____________               podpis ___________________________"]

{"sheet":"Odběratelé","index":5,"n_rows":30,"n_cols":12,"rows_kept":30,"cut":false,"hidden":false,"merged":[]}
["ID","Odběratel","Ulice","Město","PSČ","IČ","DIČ","Kontaktní osoba","Email","Předmět","Vybraný Odběratel",2]
[1,"Odběratel 1","Modrá 66","Brno",60200,11223344,"CZ11223344","Tomáš Novák","info@firma1.cz","Faktura - listopad"]
[2,"Odběratel 2","Červená 44","Plzeň","301 00",55667788,"CZ55667788","Lucie Tomanová","info@firma2.cz","Faktura - listopad"]
[3,"Odběratel 3","Fialová 15","Praha 9","190 00",11002299,"CZ11002299","Jana Navrátilová","info@firma3.cz","Práce na síti a PC pro pobočku"]
[4,"Odběratel 4","Oranžová 34","Pardubice",53002,33884477,null,"Jan Tomek","info@firma4.cz"]
[5]
[6]
[7]
[8]
[9]
[10]
[11]
[12]
[13]
[14]
[15]
[16]
[17]
[18]
[19]
[20]
[21]
[22]
[23]
[24]
[25]
[26]
[27]
[28]
[29]

{"sheet":"Činnosti","index":6,"n_rows":63,"n_cols":16,"rows_kept":63,"cut":false,"hidden":false,"merged":[[41,0,41,1],[1,11,7,11],[6,1,6,5],[7,1,7,5],[8,1,8,5],[9,1,9,5],[10,1,10,5],[11,1,11,5],[12,1,12,5],[13,1,13,5],[14,1,14,5],[15,1,15,5],[16,1,16,5],[17,1,17,5]]}
[null,"Hodinová sazba 1",500,null,"Minutová sazba",{"$f":"C1/60","v":8.3333333333333339},null,null,null,null,null,"Nápověda","Pomocná data"]
[null,"Hodinová sazba 2",400,null,"Minutová sazba",{"$f":"C2/60","v":6.666666666666667},null,null,null,null,null,"Do sekce Činností doplň běžně používané činnosti a do sekce texty běžně používané texty v horní části faktury. Do faktury se propisuje Pevná sazba, pro odhadnutí pevné sazby pak slouží výpočtová část Spočtená sazba."]
[]
[]
["ID","Název činnosti",null,null,null,null,"Typ sazby","Čas v min","Spočtená sazba","Pevná sazba",null,null,"Zvolené činnosti na faktuře",null,null,"Ceny"]
[1,"   ",null,null,null,null,null,null,null,null,null,null,"Řádek 1",2,null,{"$f":"VLOOKUP(N6,$A$6:$J$40,10,FALSE)","v":250}]
[2,"Diagnostika problému",null,null,null,null,1,30,{"$f":"IF(G7=1,$F$1,0)*H7+IF(G7=2,$F$2,0)*H7","v":250.00000000000003},250,null,null,"Řádek 2",1,null,{"$f":"VLOOKUP(N7,$A$6:$J$40,10,FALSE)","v":0}]
[3,"Demontáž zařízení",null,null,null,null,1,60,{"$f":"IF(G8=1,$F$1,0)*H8+IF(G8=2,$F$2,0)*H8","v":500.00000000000006},500,null,null,"Řádek 3",1,null,0]
[4,"Doprava, příprava materiálu",null,null,null,null,0,0,{"$f":"IF(G9=1,$F$1,0)*H9+IF(G9=2,$F$2,0)*H9","v":0},10,null,null,"Řádek 4",1,null,0]
[5,"Funkční zkouška",null,null,null,null,1,20,{"$f":"IF(G10=1,$F$1,0)*H10+IF(G10=2,$F$2,0)*H10","v":166.66666666666669},200,null,null,"Řádek 5",1,null,0]
[6,"Funkční zkouška UPS",null,null,null,null,1,10,{"$f":"IF(G11=1,$F$1,0)*H11+IF(G11=2,$F$2,0)*H11","v":83.333333333333343},70,null,null,"Řádek 6",1,null,0]
[7,"Instalace a konfigurace software",null,null,null,null,1,30,250.00000000000003,300,null,null,"Řádek 7",1,null,0]
[8,"Montážní materiál",null,null,null,null,0,0,0,150,null,null,"Řádek 8",1,null,0]
[9,"Poradenská činnost v IT",null,null,null,null,2,60,400,400,null,null,"Řádek 9",1,null,0]
[10,"Poradenství v oblasti informačních technologií",null,null,null,null,1,20,166.66666666666669,150,null,null,"Řádek 10",1,null,0]
[11,null,null,null,null,null,null,null,null,null,null,null,"Řádek 11",1,null,0]
[12,null,null,null,null,null,null,null,null,null,null,null,"Řádek 12",1,null,0]
[13,null,null,null,null,null,null,null,null,null,null,null,"Řádek 13",1,null,0]
[14,null,null,null,null,null,null,null,null,null,null,null,"Řádek 14",1,null,0]
[15,null,null,null,null,null,null,null,null,null,null,null,"Řádek 15",null,null,{"$error":"#N/A"}]
[16,null,null,null,null,null,null,null,null,null,null,null,"Řádek 16",null,null,{"$error":"#N/A"}]
[17,null,null,null,null,null,null,null,null,null,null,null,"Řádek 17",null,null,{"$error":"#N/A"}]
[18,null,null,null,null,null,null,null,null,null,null,null,"Řádek 18",null,null,{"$error":"#N/A"}]
[19,null,null,null,null,null,null,null,null,null,null,null,"Řádek 19",null,null,{"$error":"#N/A"}]
[20,null,null,null,null,null,null,null,null,null,null,null,"Řádek 20",null,null,{"$error":"#N/A"}]
[21,null,null,null,null,null,null,null,null,null,null,null,"Řádek 21",null,null,{"$error":"#N/A"}]
[22,null,null,null,null,null,null,null,null,null,null,null,"Řádek 22",null,null,{"$error":"#N/A"}]
[23,null,null,null,null,null,null,null,null,null,null,null,"Řádek 23",null,null,{"$error":"#N/A"}]
[24,null,null,null,null,null,null,null,null,null,null,null,"Řádek 24",null,null,{"$error":"#N/A"}]
[25,null,null,null,null,null,null,null,null,null,null,null,"Řádek 25",null,null,{"$error":"#N/A"}]
[26,null,null,null,null,null,null,null,null,null,null,null,"Řádek 26",null,null,{"$error":"#N/A"}]
[27,null,null,null,null,null,null,null,null,null,null,null,"Řádek 27",null,null,{"$error":"#N/A"}]
[28,null,null,null,null,null,null,null,null,null,null,null,"Řádek 28",null,null,{"$error":"#N/A"}]
[29,null,null,null,null,null,null,null,null,null,null,null,"Řádek 29",null,null,{"$error":"#N/A"}]
[30,null,null,null,null,null,null,null,null,null,null,null,"Řádek 30",null,null,{"$error":"#N/A"}]
[31,null,null,null,null,null,null,null,null,null,null,null,"Řádek 31",null,null,{"$error":"#N/A"}]
[32,null,null,null,null,null,null,null,null,null,null,null,"Řádek 32",null,null,{"$error":"#N/A"}]
[33,null,null,null,null,null,null,null,null,null,null,null,"Řádek 33",null,null,{"$error":"#N/A"}]
[34,null,null,null,null,null,null,null,null,null,null,null,"Řádek 34",null,null,{"$error":"#N/A"}]
[35,null,null,null,null,null,null,null,null,null,null,null,"Řádek 35",null,null,{"$error":"#N/A"}]
[]
["TEXTY"]
[1,null,null,null,null,null,null,null,null,null,null,null,"Řádek 1",1]
[2,"Tento doklad slouží jako potvrzení o nabytí licence, proto si jej řádně uchovejte",null,null,null,null,null,null,null,null,null,null,"Řádek 2",1]
[3,"Pozor změna bankovního účtu na 1234567890/000",null,null,null,null,null,null,null,null,null,null,"Řádek 3",1]
[4,null,null,null,null,null,null,null,null,null,null,null,"Řádek 4"]
[5,null,null,null,null,null,null,null,null,null,null,null,"Řádek 5"]
[6,null,null,null,null,null,null,null,null,null,null,null,"Řádek 6"]
[7,null,null,null,null,null,null,null,null,null,null,null,"Řádek 7"]
[8,null,null,null,null,null,null,null,null,null,null,null,"Řádek 8"]
[9,null,null,null,null,null,null,null,null,null,null,null,"Řádek 9"]
[10,null,null,null,null,null,null,null,null,null,null,null,"Řádek 10"]
[11,null,null,null,null,null,null,null,null,null,null,null,"Řádek 11"]
[12,null,null,null,null,null,null,null,null,null,null,null,"Řádek 12"]
[13,null,null,null,null,null,null,null,null,null,null,null,"Řádek 13"]
[14,null,null,null,null,null,null,null,null,null,null,null,"Řádek 14"]
[15,null,null,null,null,null,null,null,null,null,null,null,"Řádek 15"]
[16,null,null,null,null,null,null,null,null,null,null,null,"Řádek 16"]
[17,null,null,null,null,null,null,null,null,null,null,null,"Řádek 17"]
[18,null,null,null,null,null,null,null,null,null,null,null,"Řádek 18"]
[19,null,null,null,null,null,null,null,null,null,null,null,"Řádek 19"]
[20,null,null,null,null,null,null,null,null,null,null,null,"Řádek 20"]
[21,null,null,null,null,null,null,null,null,null,null,null,"Řádek 21"]

{"sheet":"Nastavení","index":7,"n_rows":21,"n_cols":16,"rows_kept":21,"cut":false,"hidden":false,"merged":[[18,4,19,7],[7,8,10,12],[2,4,2,7],[6,4,6,7],[17,4,17,7],[2,8,2,12],[6,8,6,12],[0,0,1,1],[7,4,9,7],[10,4,13,7],[14,4,15,7],[0,4,0,12],[1,4,1,12],[3,4,5,7],[3,8,5,12]]}
["Nastavení dat pro generování",null,null,null,"Nápověda",null,null,null,null,null,null,null,null,null,"Pomocná data"]
[null,null,null,null,"Tento sešit obsahuje následující listy",null,null,null,null,null,null,null,null,null,"Číselník splatnost"]
["OSVČ subjekt","Jméno Příjmení",null,null,"Přehledy",null,null,null,"Odběratelé",null,null,null,null,null,"5 dní",{"$f":"IF($B$16=\"5 dní\",5,0)","v":0}]
["Ulice","Žlutá 33",null,null,"Zde je seznam všech vydaných faktur v daném roce a pak součty jednotlivých roků, ze kterých je generován graf obratu. ",null,null,null,"Zde je seznam odběratelů, zde bere faktura v úvahu fakturace pravidelným odběratelům",null,null,null,null,null,"7 dní",{"$f":"IF($B$16=\"7 dní\",7,0)","v":0}]
["Město","Plzeň",null,null,null,null,null,null,null,null,null,null,null,null,"14 dní",{"$f":"IF($B$16=\"14 dní\",14,0)","v":0}]
["PSČ",30100,null,null,null,null,null,null,null,null,null,null,null,null,"1 měsíc",{"$f":"IF($B$16=\"1 měsíc\",30,0)","v":30}]
["IČ",88888888,null,null,"Faktura",null,null,null,"Činnosti",null,null,null,null,null,"2 měsíce",{"$f":"IF($B$16=\"2 měsíce\",60,0)","v":0}]
["DIČ",null,null,null,"V hlavičce faktury je rozbalovací menu, ze kterého je možné vybrat Odběratele ze seznamu Odběratelů. Údaje se pak automaticky doplní do hlavičky faktury.",null,null,null,"Zde je seznam činností a položek, které se pak vybírají v seznamu do těla faktury"]
["Bankovní účet",1234567890,null,null,null,null,null,null,null,null,null,null,null,null,"Číselník úhrada"]
["Kód banky",2010,null,null,null,null,null,null,null,null,null,null,null,null,"Převodem"]
["IBAN","CZ8520100000001234567890",null,null,"Do těla faktury se pak vybírají činnosti z číselníku Činností, případně se dá položka napsat ručně do označeného políčka vporavo od těla faktury",null,null,null,null,null,null,null,null,null,"Hotově"]
["SWIFT","FIOBCZPPXXX"]
["Telefon",724000000,null,null,null,null,null,null,null,null,null,null,null,null,"Omezení Fakturocelu"]
["Email","info@poskytovalemailu.cz",null,null,null,null,null,null,null,null,null,null,null,null,"Odběratelů",29]
["WEB","www.mojewebovestranky.cz",null,null,"Do faktury je možné vygenerovat QR kód pro platbu a to přes makro - ZDE doplnit postup",null,null,null,null,null,"Záhlaví tabulek",null,null,null,"Činností",35]
["Splatnost FA","1 měsíc",null,null,null,null,null,null,null,null,null,null,null,null,"Textů",20]
["Způsob úhrady","Převodem",null,null,null,null,null,null,null,null,"Popisky v tabulce",null,null,null,"Faktur",40]
["Aktuální rok",2018,null,null,"Nastavení",null,null,null,null,null,null,null,null,null,"Položek na faktuře",15]
[null,null,null,null,"Jde o tento list. Vyplň všechny potřebné hodnoty, které se pak dále propisují, kde je potřeba a to včetně loga a podpisu.",null,null,null,null,null,"Políčka, které lze upravovat"]
["Logo",null,null,null,null,null,null,null,null,null,null,null,null,null,"Lomítklo do čísla účtu","/"]
["Podpis"]